Cogmind - Beta 12 @@@ ROGUE MODE // 2023.03.14 @ 01:28:21 Player: Lunatic Blue Result: Destroyed by G-47 Trooper with Particle Gun Performance ------------- Evolutions (3) 1500 Regions Visited (8) 1600 Robots Destroyed (109) 545 Value Destroyed (3759) 3759 Prototype IDs (11) 220 Alien Tech Used (0) 0 Bonus (1020) 1020 TOTAL SCORE: 8644 Bonus ------- High Alert Combat Kills 245 Follower Combat Kills 75 Entered Garrisons 200 Used RIF Installer 500 Cogmind --------- Core Integrity 0/700 Matter 81/300 Energy 555/555 System Corruption 6% Temperature Cool (41) Movement Treading (650) Ox6 Location -7/Factory Parts ------- > --- POWER (2) -------- Neutrino Core Particle Reactor > --- PROPULSION (3) --- Armored Treads Gravmag System > --- UTILITY (6) ------ Huge Storage Unit Improved Sensor Array Signal Interpreter Heavy Armor Plating Relay Coupler [NC] (19) > --- WEAPON (2) ------- Quantum Rifle Railgun > --- INVENTORY (25) --- Particle Reactor Advanced Heat Sink Coolant Injector Large Storage Unit Gravity Neutralizer Gravity Neutralizer Transport Network Coupler Improved Light Armor Plating Relay Coupler [NC] (31) Relay Coupler [NC] (22) Relay Coupler [Swarmer] (45) Relay Coupler [Swarmer] (33) Relay Coupler [Duelist] (31) Relay Coupler [Sentry] (18) Relay Coupler [Hunter] (19) Long-range Tractor Beam Gatling Laser PD Laser Flak Gun Remote Datajack Heavy Hammer Peak State ------------ > --- POWER ------------ Neutrino Core Particle Reactor > --- PROPULSION ------- Improved Heavy Treads Carbon-fiber Leg > --- UTILITY ---------- Improved Heat Sink Improved Heat Sink Advanced Heat Sink Huge Storage Unit Signal Interpreter Improved Light Armor Plating > --- WEAPON ----------- Quantum Rifle Railgun > --- INVENTORY -------- Particle Reactor Gravmag System Coolant Injector Large Storage Unit Gravity Neutralizer Gravity Neutralizer Transport Network Coupler Transport Network Coupler Authchip [Device] Authchip [Processor] Authchip [Weapon] Relay Coupler [NC] Relay Coupler [NC] Relay Coupler [Swarmer] Relay Coupler [Sentry] Relay Coupler [Hunter] Relay Coupler [Hunter] Long-range Tractor Beam Gatling Laser PD Laser Flak Gun Remote Datajack Heavy Hammer [Rating: 72] Favorites ----------- Power Cooled Ion Engine Engine Cooled Ion Engine Power Core Neutrino Core Reactor Particle Reactor Propulsion Light Treads Treads Light Treads Leg Aluminum Leg Wheel Wheel Hover Unit Gravmag System Flight Unit Improved Flight Unit Utility Huge Storage Unit Device Structural Scanner Storage Huge Storage Unit Processor Signal Interpreter Hackware Hacking Suite Protection Hardened Light Armor Plating Weapon Advanced Beam Cannon Energy Gun Medium Laser Energy Cannon Advanced Beam Cannon Ballistic Gun Assault Rifle Ballistic Cannon Light Cannon Launcher Mini Grenade Launcher Special Weapon Remote Datajack Impact Weapon Heavy Hammer Build | -11 -10 -10 -9 -9 -9 -7 -7 -7 ------- Run | Jun Mat Min Mat Sto Rec Fac Gar Fac Slots Evolved 6 | . . . 2 . . 4 . . Power 1 | . . . . . . 1 . . Propulsion 1 | . . . . . . 1 . . Utility 4 | . . . 2 . . 2 . . Weapon . | . . . . . . . . . Parts Attached 131 | . 7 3 14 25 . 19 57 6 Power 16 | . 1 1 3 1 . 1 9 . Engine 9 | . 1 1 3 1 . . 3 . Core 6 | . . . . . . 1 5 . Reactor 1 | . . . . . . . 1 . Propulsion 24 | . 2 2 1 5 . 2 10 2 Treads 11 | . 1 1 1 2 . . 5 1 Leg 4 | . . . . . . . 4 . Wheel 7 | . 1 1 . 2 . 2 1 . Hover 1 | . . . . . . . . 1 Flight 1 | . . . . 1 . . . . Utility 33 | . 4 . 5 5 . 3 14 2 Device 16 | . . . 3 2 . 1 9 1 Storage 3 | . 3 . . . . . . . Processor 2 | . 1 . . . . 1 . . Hackware 3 | . . . . 1 . 1 . 1 Protection 9 | . . . 2 2 . . 5 . Artifact . | . . . . . . . . . Weapon 58 | . . . 5 14 . 13 24 2 Energy Gun 7 | . . . 2 2 . . 2 1 Energy Cannon 13 | . . . 1 4 . 2 6 . Ballistic Gun 18 | . . . 1 1 . 4 12 . Ballistic Cannon 4 | . . . 1 3 . . . . Launcher 6 | . . . . . . 4 2 . Special Weapon 1 | . . . . . . . . 1 Impact Weapon 9 | . . . . 4 . 3 2 . Slashing Weapon . | . . . . . . . . . Piercing Weapon . | . . . . . . . . . Special Melee Weapon . | . . . . . . . . . Unidentified Prototypes 6 | . . . . 5 . . 1 . Corrupted Parts 1 | . . . . . . . 1 . System Corruption 2 | . . . . . . . 2 . Parts Lost 48 | . . 2 7 3 . 5 31 . Power 10 | . . . 2 . . 1 7 . Propulsion 9 | . . 2 . 1 . 1 5 . Utility 16 | . . . 2 2 . 2 10 . Weapon 13 | . . . 3 . . 1 9 . Highest Loss Streak 19 | . . 2 5 2 . 3 19 . To Critical Strikes . | . . . . . . . . . Average Slot Usage (%) 94 | . 96 99 99 99 100 87 79 83 Engine 9 | . 14 14 10 11 11 6 3 . Core 1 | . . . . . . 2 4 7 Treads 10 | . 11 14 11 11 11 6 5 12 Leg 1 | . 5 . . . . . 7 1 Wheel 9 | . 11 13 11 10 11 11 2 . Device 12 | . . . 19 21 11 14 17 7 Storage 10 | . 14 14 11 11 11 7 7 7 Processor 5 | . 11 14 6 . . 7 7 7 Hackware 2 | . . . . . 11 4 1 6 Protection 6 | . . . 7 11 11 7 4 7 Energy Gun 4 | . 14 14 6 . . . 1 6 Energy Cannon 8 | . . . 4 19 22 7 1 . Ballistic Gun 6 | . 14 14 6 . . 3 9 7 Naked Turns . | . . . . . . . . . Heaviest Build 143 | 12 89 89 98 104 103 109 143 143 Greatest Support 95 | 20 20 10 10 10 10 28 75 95 Greatest Overweight (x) 10 | . 8 8 9 10 10 5 9 6 Average Overweight (x) 6 | . 3 8 9 9 10 4 2 1 Largest Inventory Capacity 25 | . 25 25 25 25 25 25 25 25 Average Capacity 24 | . 16 25 25 25 25 25 25 25 Most Carried 25 | . 18 22 25 25 25 25 25 25 Average Carried 22 | . 11 20 23 24 24 24 22 24 Final Capacity 25 | 8 25 25 25 25 25 25 25 25 Final Carried 25 | 6 18 22 25 25 25 24 25 23 Class Distribution -------------------- 66% | Mutant 22% | Scavenger-Mutant 10% | Bothacker-Mutant Dominant Class ---------------- Mutant | -10/Materials Mutant | -10/Mines Mutant | -9/Materials Mutant | -9/Storage Mutant | -9/Recycling Scavenger-Mutant | -7/Factory Scavenger-Mutant | -7/Garrison Bothacker-Mutant | -7/Factory Resources | -11 -10 -10 -9 -9 -9 -7 -7 -7 ----------- Run | Jun Mat Min Mat Sto Rec Fac Gar Fac Matter Collected 2368 | 184 205 64 215 296 . 116 1218 70 Remotely . | . . . . . . . . . Salvage Created 4634 | . 353 190 310 1491 94 572 1475 149 Parts 244 | . 26 14 22 85 2 37 50 8 Haulers Intercepted 6 | . 1 . . 5 . . . . Recyclers Shooed 4 | . . . . 3 . 1 . . Parts Field Recycled . | . . . . . . . . . Retrieved Matter . | . . . . . . . . . Parts Self-Destructed . | . . . . . . . . . Prevented . | . . . . . . . . . Kills | -11 -10 -10 -9 -9 -9 -7 -7 -7 ------- Run | Jun Mat Min Mat Sto Rec Fac Gar Fac Combat Hostiles Destroyed 75 | . 7 4 6 27 . 12 17 2 Melee 1 | . . . . . . . 1 . Guns 28 | . 7 4 5 . . 3 7 2 Cannons 29 | . . . 1 27 . 1 . . AOE 15 | . . . . . . 8 7 . Classes Destroyed 13 | . 7 . 2 2 . 2 . . Worker 9 | . 2 2 . 1 . 4 . . Builder 2 | . . . 1 . . 1 . . Tunneler 3 | . 1 1 . . . 1 . . Hauler 6 | . 1 . . 5 . . . . Recycler 3 | . . . . 1 1 1 . . Operator 5 | . 1 . 2 2 . . . . Watcher 6 | . 1 . 2 2 . . . 1 Swarmer 18 | . 2 2 . 6 . 4 4 . Grunt 32 | . 5 2 2 12 . 5 6 . Brawler 1 | . . . . 1 . . . . Sentry 18 | . . . 4 8 . 1 4 1 Hunter 3 | . . . . . . 1 2 . Programmer 3 | . . . . . . 1 1 1 Best Kill Streak 16 | . 3 2 2 7 1 16 8 1 Combat Bots Only 9 | . 2 2 2 7 . 9 9 1 Max Kills in Single Turn 6 | . 2 1 1 1 1 6 2 1 Gunslinging . | . . . . . . . . . Exploded 3 | . . . . . . 3 2 . Melee 1 | . . . . . . . 1 . Uniques/NPCs Destroyed . | . . . . . . . . . Combat | -11 -10 -10 -9 -9 -9 -7 -7 -7 -------- Run | Jun Mat Min Mat Sto Rec Fac Gar Fac Damage Taken 7171 | . 311 156 761 1034 . 791 3822 296 Core 1111 | . 89 17 80 222 . 73 587 43 Absorbed by Shields . | . . . . . . . . . Regen/Repaired (Parts) 33 | . . . . 33 . . . . Core Remaining (%) 60 | 100 . 57 . . 24 . . . Volleys Fired 319 | . 40 13 33 93 1 25 102 12 Largest 2 | . 2 2 2 2 2 2 2 2 Hottest 136 | . 70 70 100 136 136 136 129 129 Shots Fired 620 | . 80 26 66 186 2 44 198 18 Gun 372 | . 80 26 50 . . 23 178 15 Cannon 234 | . . . 16 186 2 15 15 . Launcher 11 | . . . . . . 6 5 . Special 3 | . . . . . . . . 3 Kinetic 300 | . 40 13 33 14 . 23 169 8 Thermal 293 | . 40 13 33 172 2 15 11 7 Explosive 11 | . . . . . . 6 5 . Electromagnetic 13 | . . . . . . . 13 . Robot Hit Streak 27 | . 18 5 27 12 7 9 18 10 Robot Miss Streak 8 | . 3 2 2 8 . 4 2 2 Penetration Max 1 | . . . . . . . 1 . Secondary Targets 2 | . . 1 . . . . 1 . Max Gunslinging Chain 1 | . . 1 . . . . 1 . Shots Hit Robots 440 | . 56 16 52 111 1 27 166 11 Core Hits 201 | . 22 9 16 47 1 34 67 5 Critical Kills 2 | . . . . . . . 2 . Critical Parts Destroyed 4 | . . . . . . . 4 . Critical Strikes 14 | . 6 1 1 . . . 6 . Burn 8 | . 6 1 1 . . . . . Destroy 5 | . . . . . . . 5 . Smash 1 | . . . . . . . 1 . Melee Attacks 31 | . . . . 7 . 9 15 . Impact 31 | . . . . 7 . 9 15 . Slashing . | . . . . . . . . . Piercing . | . . . . . . . . . Sneak Attacks . | . . . . . . . . . Combat Hostiles . | . . . . . . . . . Follow-up Attacks . | . . . . . . . . . Damage Inflicted 9487 | . 727 205 828 2136 21 1360 3942 268 Guns 4868 | . 720 205 633 . . 253 2789 268 Cannons 2776 | . . . 195 2136 21 201 223 . Explosions 1581 | . . . . . . 906 675 . Melee 254 | . . . . . . . 254 . Ramming 8 | . 7 . . . . . 1 . Kinetic 4001 | . 357 114 351 134 . 253 2673 119 Thermal 3556 | . 363 91 477 2002 21 201 252 149 Explosive 1485 | . . . . . . 906 579 . Electromagnetic 183 | . . . . . . . 183 . Impact 254 | . . . . . . . 254 . Slashing . | . . . . . . . . . Piercing . | . . . . . . . . . Highest Corruption 6 | . . . . . . 2 4 6 Average Corruption 3 | . . . . . . 1 3 4 Corruption Purged . | . . . . . . . . . Corruption Blocked . | . . . . . . . . . Effects 44 | . . . . . . 1 27 16 Message Errors 9 | . . . . . . . 6 3 Matter Fused 20 | . . . . . . 1 10 9 Heat Flow Errors 5 | . . . . . . . 4 1 Parts Rejected 2 | . . . . . . . 2 . Data Loss (minor) 5 | . . . . . . . 3 2 Misfires 1 | . . . . . . . 1 . Weapon Failures 2 | . . . . . . . 1 1 Overload Shots . | . . . . . . . . . Overflow Damage 171 | . . . . 17 . 8 146 . Projectiles 17 | . . . . 17 . . . . Explosions 108 | . . . . . . 8 100 . Melee 46 | . . . . . . . 46 . Knockbacks 3 | . . . . . . . 3 . Impact 3 | . . . . . . . 3 . Kinetic . | . . . . . . . . . Secondary . | . . . . . . . . . Self-Inflicted Damage 180 | . . . . . . 21 159 . Shots 5 | . . . . . . 1 4 . Rammed 1 | . . . . . . . 1 . Targets Rammed 2 | . 1 . . . . . 1 . Kicked 1 | . 1 . . . . . . . Crushed . | . . . . . . . . . Highest Temperature 340 | . 90 66 153 126 9 6 340 281 Average Temperature 55 | . 36 24 53 30 6 3 98 108 Received Heat Transfer 2553 | . 129 60 330 393 . 141 1434 66 Effects 3 | . . . . . . . 3 . Interference 3 | . . . . . . . 3 . Siege Activations . | . . . . . . . . . Robots Corrupted . | . . . . . . . . . Combat Hostiles . | . . . . . . . . . Parts Fried 1 | . . . . . . . 1 . Impact Corruptions 2 | . . . . . . . 2 . Robots Melted . | . . . . . . . . . Combat Hostiles . | . . . . . . . . . Parts Melted 19 | . 1 1 2 11 . . 2 2 Heat Transferred 7670 | . 1517 333 1184 3698 37 333 383 185 Parts Sabotaged . | . . . . . . . . . Parts Stolen . | . . . . . . . . . Parts Stripped . | . . . . . . . . . Power Chain Reactions 1 | . . . . . . . 1 . Missiles Intercepted . | . . . . . . . . . Alert | -11 -10 -10 -9 -9 -9 -7 -7 -7 ------- Run | Jun Mat Min Mat Sto Rec Fac Gar Fac Peak Influence 791 | . 205 61 121 533 219 470 791 486 Initial 415 | . . 1 1 8 183 212 337 415 Average 221 | . 62 24 48 254 84 250 588 384 Maximum Alert Level 3 | . 1 . . 2 1 2 3 2 Low Security (%) 55 | . 94 100 100 36 96 18 . . Level 1 19 | . 5 . . 32 3 77 12 44 Level 2 24 | . . . . 30 . 3 82 55 Level 3 . | . . . . . . . 4 . Level 4 . | . . . . . . . . . Level 5 . | . . . . . . . . . High Security . | . . . . . . . . . Max Security . | . . . . . . . . . Squads Dispatched 16 | . 2 . 2 5 . 5 . 2 Investigation 4 | . 1 . . 1 . 1 . 1 Extermination 2 | . . . . . . 1 . 1 Reinforcement 7 | . 1 . 2 2 . 2 . . Assault 2 | . . . . 2 . . . . Garrison 1 | . . . . . . 1 . . Intercept . | . . . . . . . . . Searches Triggered . | . . . . . . . . . Construction Impeded 2 | . . . . 1 . 1 . . Haulers Reinforced . | . . . . . . . . . Active Scanning Responses . | . . . . . . . . . Cargo Convoy Interrupts . | . . . . . . . . . Stealth | -11 -10 -10 -9 -9 -9 -7 -7 -7 --------- Run | Jun Mat Min Mat Sto Rec Fac Gar Fac Distress Signals 4 | . 1 . . 2 . 1 . . Communications Jammed . | . . . . . . . . . Distress Signals . | . . . . . . . . . Times Spotted 111 | . 14 5 12 40 . 18 16 6 Peak Tracking Total 9 | . 2 3 3 9 . 8 9 2 Tactical Retreats 6 | . 1 . . 2 . 2 1 . Traps | -11 -10 -10 -9 -9 -9 -7 -7 -7 ------- Run | Jun Mat Min Mat Sto Rec Fac Gar Fac Traps Triggered 8 | . . . . 2 . . 6 . Indirectly . | . . . . . . . . . Trap Hack Attempts . | . . . . . . . . . Triggered . | . . . . . . . . . Disarmed . | . . . . . . . . . Reprogrammed . | . . . . . . . . . Reused . | . . . . . . . . . Traps Extracted . | . . . . . . . . . Installed . | . . . . . . . . . Triggered . | . . . . . . . . . Machines | -11 -10 -10 -9 -9 -9 -7 -7 -7 ---------- Run | Jun Mat Min Mat Sto Rec Fac Gar Fac Machines Disabled 9 | . . . 1 4 . 1 3 . Max in Single Turn 1 | . . . 1 1 . 1 1 . Garrison Access 1 | . . . . 1 . . . . Garrison Relay 3 | . . . . . . . 3 . Machines Repaired . | . . . . . . . . . Machines Sabotaged . | . . . . . . . . . Overloaded Fab Kills . | . . . . . . . . . Hacking | -11 -10 -10 -9 -9 -9 -7 -7 -7 --------- Run | Jun Mat Min Mat Sto Rec Fac Gar Fac Machines Accessed 38 | . 7 . 5 11 10 3 . 2 Terminals 26 | . 6 . 5 9 6 . . . Fabricators 1 | . . . . . . 1 . . Repair Stations 4 | . . . . 1 . 1 . 2 Recycling Units 5 | . 1 . . . 4 . . . Scanalyzers . | . . . . . . . . . Garrison Access 2 | . . . . 1 . 1 . . Total Hacks 80 | . 16 . 11 24 20 5 . 4 Successful 36 | . 4 . 1 15 14 1 . 1 Failed 43 | . 11 . 10 9 6 4 . 3 Catastrophic 10 | . 3 . 3 2 . 1 . 1 Database Lockouts 1 | . 1 . . . . . . . Manual 41 | . 12 . 6 12 11 . . . Terminals 61 | . 14 . 11 20 16 . . . Fabricators 3 | . . . . . . 3 . . Repair Stations 7 | . . . . 2 . 1 . 4 Recycling Units 6 | . 2 . . . 4 . . . Scanalyzers . | . . . . . . . . . Garrison Access 3 | . . . . 2 . 1 . . Terminal Hacks 18 | . 2 . 1 9 6 . . . Part Schematic 1 | . . . . . 1 . . . Robot Analysis 1 | . 1 . . . . . . . Prototype ID Bank 3 | . . . 1 1 1 . . . Open Door 4 | . . . . 4 . . . . Terminal Index 3 | . 1 . . 1 1 . . . Unreport Threat 3 | . . . . 1 2 . . . Locate Traps 1 | . . . . 1 . . . . Hauler Manifests 1 | . . . . . 1 . . . Zone Layout 1 | . . . . 1 . . . . Fabricator Hacks . | . . . . . . . . . Repair Station Hacks 3 | . . . . 2 . . . 1 Scan Component 2 | . . . . 1 . . . 1 Repair 1 | . . . . 1 . . . . Recycling Unit Hacks . | . . . . . . . . . Scanalyzer . | . . . . . . . . . Garrison Access Hacks 2 | . . . . 1 . 1 . . Unlock Access 1 | . . . . . . 1 . . Seal Access 1 | . . . . 1 . . . . Unauthorized Hacks 13 | . 2 . . 3 8 . . . Terminals 8 | . 1 . . 3 4 . . . Botnet 5 | . . . . 2 3 . . . Operators 3 | . 1 . . 1 1 . . . Fabricators . | . . . . . . . . . Repair Stations . | . . . . . . . . . Recycling Units 5 | . 1 . . . 4 . . . Tunnel 5 | . 1 . . . 4 . . . Scanalyzers . | . . . . . . . . . Garrison Access . | . . . . . . . . . Data Cores Recovered 1 | . . . . 1 . . . . Used . | . . . . . . . . . Hacking Detections 27 | . 6 . 5 6 6 2 . 2 Full Trace Events 2 | . . . . . . 1 . 1 Feedback Events . | . . . . . . . . . Feedback Blocked . | . . . . . . . . . Robot Schematics Acquired . | . . . . . . . . . Robots Built . | . . . . . . . . . Authchips . | . . . . . . . . . Time . | . . . . . . . . . Total Robot Build Rating . | . . . . . . . . . Part Schematics Acquired 1 | . . . . . 1 . . . Parts Built . | . . . . . . . . . Authchips . | . . . . . . . . . Time . | . . . . . . . . . Total Part Build Rating . | . . . . . . . . . Parts Repaired 1 | . . . . 1 . . . . Time 38 | . . . . 38 . . . . Parts Recycled . | . . . . . . . . . Recycled Matter . | . . . . . . . . . Retrieved Matter . | . . . . . . . . . Retrieved Components . | . . . . . . . . . Parts Scanalyzed . | . . . . . . . . . Part Schematics Acquired . | . . . . . . . . . Parts Damaged . | . . . . . . . . . Bothacking | -11 -10 -10 -9 -9 -9 -7 -7 -7 ------------ Run | Jun Mat Min Mat Sto Rec Fac Gar Fac Used RIF Installer 1 | . . . . . . . 1 . Robots Hacked 1 | . . . . . . . . 1 Non-combat 1 | . . . . . . . . 1 Combat . | . . . . . . . . . Robot Hacks Applied 1 | . . . . . . . . 1 drop_inventory 1 | . . . . . . . . 1 Relay Couplers Released 11 | . . . . . . . 11 . Machine Destruction 11 | . . . . . . . 11 . Attached 1 | . . . . . . . . 1 Fabnet Peak Effective % . | . . . . . . . . . Robots Rewired . | . . . . . . . . . Allies Hacked . | . . . . . . . . . Hacks Repelled . | . . . . . . . . . Allies | -11 -10 -10 -9 -9 -9 -7 -7 -7 -------- Run | Jun Mat Min Mat Sto Rec Fac Gar Fac Total Allies 2 | . . . . 2 . . . . Largest Group 2 | . . . . 2 . . . . Highest-Rated Group 62 | . . . . 62 . . . . Highest-Rated Ally 31 | . . . . 31 . . . . Total Orders . | . . . . . . . . . Ally Attacks 12 | . . . . 12 . . . . Total Damage 229 | . . . . 229 . . . . Kills 3 | . . . . 3 . . . . Allies Corrupted 1 | . . . . 1 . . . . Allies Melted . | . . . . . . . . . Intel | -11 -10 -10 -9 -9 -9 -7 -7 -7 ------- Run | Jun Mat Min Mat Sto Rec Fac Gar Fac Robot Analysis Total 1 | . 1 . . . . . . . Derelict Logs Recovered 2 | . . 2 . . . . . . Drone Launches . | . . . . . . . . . Drone Recoveries . | . . . . . . . . . Exploration | -11 -10 -10 -9 -9 -9 -7 -7 -7 ------------- Run | Jun Mat Min Mat Sto Rec Fac Gar Fac Turns Passed 8668 | . 917 1101 997 2165 942 567 1258 721 Spaces Moved 3537 | 1 541 526 387 769 407 290 356 260 Core . | . . . . . . . . . Treads 428 | . . . . . . . 168 260 Legs 160 | 1 125 . . . . . 34 . Wheels 2949 | . 416 526 387 769 407 290 154 . Hover . | . . . . . . . . . Flight . | . . . . . . . . . Fastest Speed 95 | 120 95 200 215 215 230 145 145 240 Average Speed 202 | 120 138 200 215 224 230 151 209 259 Slowest Speed 650 | 120 200 200 215 230 230 155 320 650 Overloaded Moves . | . . . . . . . . . Propulsion Burnouts . | . . . . . . . . . Robots Hopped . | . . . . . . . . . Cave-ins Triggered . | . . . . . . . . . Exploration Rate (%) 49 | 1 63 99 31 94 88 10 46 9 Regions Visited 8 Branch Regions 3 Pre-discovered Areas 5 | . 1 . . . 4 . . . Known Exits Taken 2 | . . . 1 . . 1 . . Unknown Exits Taken 5 | 1 1 1 . 1 1 . . . Scrap Searched 1 | . . 1 . . . . . . Spaces Dug 9 | . . . . . . 7 2 . Terrain Destroyed 87 | . . . . . . 54 27 6 Melee 9 | . . . . . . 7 2 . Projectile 7 | . . . . . . . 1 6 AOE 71 | . . . . . . 47 24 . Terrain Rammed . | . . . . . . . . . Walls Destroyed . | . . . . . . . . . Machines Disabled . | . . . . . . . . . Actions | -11 -10 -10 -9 -9 -9 -7 -7 -7 --------- Run | Jun Mat Min Mat Sto Rec Fac Gar Fac Total 4383 | . 631 550 490 1019 413 352 635 293 Wait 157 | . 18 . 34 76 . . 25 4 Move 3530 | . 540 525 386 768 406 290 355 260 Hop . | . . . . . . . . . Pick Up 94 | . 17 7 15 20 3 6 22 4 Fast Attach 36 | . 1 . 1 9 . 1 23 1 Attach 48 | . 3 2 9 5 . 6 22 1 Detach 4 | . . . . 2 . . 2 . Swap 47 | . 3 1 4 11 . 12 12 4 Drop 73 | . 8 2 8 28 3 3 14 7 Fire 319 | . 40 13 33 93 1 25 102 12 Melee 31 | . . . . 7 . 9 15 . Ram . | . . . . . . . . . Kick 1 | . 1 . . . . . . . Crush 1 | . . . . . . . 1 . Escape Stasis 42 | . . . . . . . 42 . Rewire . | . . . . . . . . . Trap . | . . . . . . . . . Miscellaneous . | . . . . . . . . . Route ------- -11/Junkyard -10/Materials (discovered 2 exits: *Mat / [*Min]) -10/Mines (discovered 2 exits: *Mat x2) -9/Materials (discovered 6 exits: Mat x2 / Min x2 / *Sto x2) -9/Storage (discovered 2 exits: *Mat / *Rec) -9/Recycling -7/Factory -7/Garrison -7/Factory History --------- Turn | Location | Event 1 | -11/Junkyard | Discovered new exit (range 0) 1 | -11/Junkyard | Entered Materials 145 | -10/Materials | Discovered new exit (range 6) 154 | -10/Materials | Discovered new exit (range 16) 344 | -10/Materials | Build established: Mutant 473 | -10/Materials | Central database locked down 918 | -10/Materials | Entered Mines 982 | -10/Mines | Discovered new exit (range 16) 992 | -10/Mines | Discovered new exit (range 10) 1281 | -10/Mines | Learned 8 Materials zone layouts 1688 | -10/Mines | Learned Materials stockpile data 2019 | -10/Mines | Entered Materials 2019 | -9/Materials | Evolved 2 slots: Utility x2 2020 | -9/Materials | Identified exit to Materials 2020 | -9/Materials | Identified exit to Mines 2020 | -9/Materials | Identified exit to Storage 2589 | -9/Materials | Discovered exit to Storage (range 12) 2686 | -9/Materials | Lost 5 parts (1p2u2w) 2950 | -9/Materials | Build established: Scavenger-Mutant 3016 | -9/Materials | Entered Storage 3473 | -9/Storage | Repaired Imp. Heat Sink 3608 | -9/Storage | Build established: Mutant 3956 | -9/Storage | Discovered exit to Materials (range 15) 4311 | -9/Storage | Met a pair of Derelict thieves 4439 | -9/Storage | Core integrity fell below 50% 4499 | -9/Storage | Destroyed 7 combat bots 5171 | -9/Storage | Used back door to open Recycling access 5171 | -9/Storage | Discovered new exit (range 5) 5181 | -9/Storage | Entered Recycling 5964 | -9/Recycling | Discovered new exit (range 16) 6123 | -9/Recycling | Entered Factory 6123 | -7/Factory | Evolved 4 slots: Power x1, Propulsion x1, Utility x2 6423 | -7/Factory | Build established: Scavenger-Mutant 6618 | -7/Factory | Garrison activated, responded to threat 6688 | -7/Factory | Lost 3 parts (1p1n1u) 6689 | -7/Factory | Destroyed 9 combat bots 6690 | -7/Factory | Identified exit to Garrison 6690 | -7/Factory | Entered Garrison 6786 | -7/Garrison | Triggered checkpoint 6851 | -7/Garrison | Garrison Relay disabled 6860 | -7/Garrison | Lost 4 parts (1n3u) 6915 | -7/Garrison | Garrison Relay disabled 7024 | -7/Garrison | Triggered checkpoint 7024 | -7/Garrison | Triggered checkpoint 7054 | -7/Garrison | Core integrity fell below 50% 7103 | -7/Garrison | Destroyed 9 combat bots 7143 | -7/Garrison | Lost 19 parts (4p4n5u6w) 7550 | -7/Garrison | Installed Relay Interface Framework 7601 | -7/Garrison | Discovered new exit (range 12) 7640 | -7/Garrison | Triggered checkpoint 7662 | -7/Garrison | Core integrity fell below 20% 7719 | -7/Garrison | Lost 7 parts (2p2u3w) 7854 | -7/Garrison | Garrison Relay disabled 7943 | -7/Garrison | Identified exit to Factory 7948 | -7/Garrison | Entered Factory 8101 | -7/Factory | Build established: Bothacker-Mutant 8669 | -7/Factory | Destroyed by G-47 Trooper with Particle Gun Last Messages --------------- 08468_ System corrupted: Matter fused (-5). 08525_ Destroyed Shock Rifle. 08525_ Slug penetrates P-60 Hacker. 08525_ P-60 Hacker destroyed. 08542_ System corrupted: Matter fused (-7). 08543_ Connecting with Repair Station... 08543_ ALERT: Suspicious activity at Repair Station F003. Dispatching Investigation squad. 08562_ System corrupted: Matter fused (-6). 08582_ System corrupted: Matter fused (-5). 08601_ Connecting with Repair Station... >>Scan(Imp. Heavy Treads) Scanning Imp. Heavy Treads... Ready to Repair: Imp. Heavy Treads Rating: 7 Time: 31 08601_ Dropped Broken Imp. Heavy Treads. 08652_ System corrupted: Matter fused (-5). 08668_ Slug penetrates G-47 Trooper. Map ----- +----------------------------------------------------+ | ?????????????????????????????????????????????????? | | ?????????????????????????????????????????????????? | | ?????????????????????????????????????????????????? | | ?????????????????????????????????????????????????? | | ?????????????????????????????????????????????????? | | ?????????????????????????????????????????????????? | | ?????????????????????????????????????????????????? | | ?????????????????????????????????????????????????? | | ?????????????????????????????????????????????????? | | ?????????????????????????????????????????????????? | | ?????????????????????????????????????????????????? | | ?????????????????????????????????????????????????? | | ?????????????????????????????????????????????????? | | ?????????????????????????????????????????????????? | | ??????????????????????X??????????????????????????? | | ?????????????????????????????????????????????????? | | ?????????????????????????????????????????????????? | | ?????????????????????????????????????????????????? | | ?????????????????????????????##########??????????? | | ?????????????????????????????# """ #??????????? | | ?????????????????#???????????# ""R" #??????????? | | ??????????????#? #???????????# ""=" #??????????? | | ??????????????#" #???????????# #??????????? | | ?????????####### ########+#### #??????????? | | ????????? + """ #??????????? | | ?????????? @ ### """ #??????????? | | ??????????# !*! [! #?# """ #??????????? | | ??????????# *!! [= #?# #??????????? | | ??????????# *! #?##########??????????? | | ??????????# #?????????????????????? | | ??????????# """"""""" ########??????????????? | | ??????????# # !#??????????????? | | ??????????# """"""""" g# """ #??????????????? | | ?########## g # "R #??????????????? | | ?+ !+%""" #??????????????? | | ?# #####+############ =# "" =#??????????????? | | ## # #????????##### #??????????????? | | + """"" #????????????########??????????????? | | ####### """"" #??????????????????????????????????? | | ??????# """ #??????????????????????????????????? | | ??????# *#??????????????????????????????????? | | ??????#########??????????????????????????????????? | | | | | | | | | | | | | | | | | +----------------------------------------------------+ Best States ------------- Heat Dissipation 81 Energy Generation 37 Energy Capacity 555 Matter Stores 300 Matter Capacity 300 Sight Range 16 Robot Scan Range 15 Terrain Scan Density 10 Jamming Range 12 Additional Mass Support 12 Armor Coverage 750 Evasion (%) 55 Targeting Accuracy 5 Recoil Reduction 3 Offensive Hacking 10 Relay Coupler Types 1 Relay Coupler Value 22 Authchip Count 3 Item Schematics ----------------- Hvy. Ion Cannon | -9/Recycling | Hacked Robot Schematics ------------------ None Fabricated ------------ Nothing Alien Tech Used ----------------- None Achievements -------------- None Challenges ------------ None Game ------ Seed HardcellSeismicWheel Manual? 0 Play Time 00:50:56 Cumulative 236.2 hours Start 2023.03.14 @ 00:39:25 End 2023.03.14 @ 01:28:21 Sessions 1 Manual Loads 0 Difficulty Rogue Special Mode None Game No. 304 Rogue 304 Adventurer 0 Explorer 0 Win Type - Total 6 Types 1/1/3/0/0/0/1/0/0 Lore% 80 Gallery% 86 Achievement% 67 Wizard Run 0 Options --------- ASCII 0 Keyboard 0 Movement Numpad Keybinds 0 Fullscreen 1 Font 18/SmallcapsGlow Map View 76x50 Tactical HUD 1 Map Filters NONE Filters NONE Steam 1 RUN: fc98210e-4cd0-4e6d-ad0a-d563e2863ff6